[Event "Betsys MČR v online bleskovém šachu 2021"]
[Site "Chess.com"]
[Date "2021.04.17"]
[Round "10"]
[White "czechfant94"]
[Black "maelic"]
[Result "1-0"]
[WhiteElo "1606"]
[BlackElo "1765"]
[TimeControl "180+1"]
[EndTime "10:40:16 PDT"]
[Termination "Uživatel czechfant94 zvítězil po vzdání soupeře"]

1. e4 {[%clk 0:03:00.9]} 1... e6 {[%clk 0:02:58.8]} 2. d4 {[%clk 0:03:00.7]}
2... d5 {[%clk 0:02:59]} 3. Nd2 {[%clk 0:03:00.8]} 3... Nf6 {[%clk 0:02:58.6]}
4. Bd3 {[%clk 0:02:58.1]} 4... Be7 {[%clk 0:02:52.9]} 5. Ngf3 {[%clk 0:02:53]}
5... O-O {[%clk 0:02:51.4]} 6. O-O {[%clk 0:02:51.7]} 6... Nbd7 {[%clk
0:02:47.2]} 7. c3 {[%clk 0:02:51]} 7... c6 {[%clk 0:02:46.6]} 8. Nb3 {[%clk
0:02:47.6]} 8... Nxe4 {[%clk 0:02:42.3]} 9. Bxe4 {[%clk 0:02:43.5]} 9... dxe4
{[%clk 0:02:42.4]} 10. Ne5 {[%clk 0:02:43.6]} 10... Nxe5 {[%clk 0:02:41.1]} 11.
dxe5 {[%clk 0:02:43.9]} 11... Qxd1 {[%clk 0:02:41.3]} 12. Rxd1 {[%clk
0:02:43.5]} 12... f5 {[%clk 0:02:30.5]} 13. Bf4 {[%clk 0:02:41.5]} 13... b6
{[%clk 0:02:26.8]} 14. Re1 {[%clk 0:02:35.8]} 14... Ba6 {[%clk 0:02:26.2]} 15.
g4 {[%clk 0:02:34.8]} 15... g6 {[%clk 0:02:23.7]} 16. gxf5 {[%clk 0:02:34]}
16... exf5 {[%clk 0:02:13.4]} 17. Rad1 {[%clk 0:02:33.5]} 17... Rad8 {[%clk
0:02:12.4]} 18. Nd4 {[%clk 0:02:29.7]} 18... Bc8 {[%clk 0:01:23.1]} 19. Nxc6
{[%clk 0:02:29]} 19... Rde8 {[%clk 0:01:22.3]} 20. Nxa7 {[%clk 0:02:26.5]} 20...
g5 {[%clk 0:01:13.9]} 21. Bc1 {[%clk 0:02:22.1]} 21... Bb7 {[%clk 0:01:12.2]}
22. Nb5 {[%clk 0:02:18]} 22... f4 {[%clk 0:01:07.8]} 23. Nd6 {[%clk 0:02:14.3]}
23... Bxd6 {[%clk 0:01:04.5]} 24. Rxd6 {[%clk 0:02:15.2]} 24... Rxe5 {[%clk
0:01:01.4]} 25. Rxb6 {[%clk 0:02:14.8]} 25... Rf7 {[%clk 0:00:58.4]} 26. Rb4
{[%clk 0:02:10]} 26... Rfe7 {[%clk 0:00:58]} 27. Kg2 {[%clk 0:02:00]} 27... e3+
{[%clk 0:00:55.9]} 28. Kf1 {[%clk 0:01:59.4]} 28... Ba6+ {[%clk 0:00:24]} 29. c4
{[%clk 0:01:53.2]} 29... e2+ {[%clk 0:00:24]} 30. Kg1 {[%clk 0:01:51.5]} 30...
f3 {[%clk 0:00:20.6]} 31. b3 {[%clk 0:01:46.5]} 31... Rd7 {[%clk 0:00:20.6]} 32.
Rb8+ {[%clk 0:01:30.3]} 32... Kf7 {[%clk 0:00:20.4]} 33. Ba3 {[%clk 0:01:17.6]}
33... Rd1 {[%clk 0:00:20.1]} 34. Rf8+ {[%clk 0:01:16.5]} 34... Kg6 {[%clk
0:00:19.8]} 35. Bb4 {[%clk 0:01:12.3]} 35... Rxe1+ {[%clk 0:00:19.3]} 36. Bxe1
{[%clk 0:01:11.3]} 36... Re7 {[%clk 0:00:17.1]} 37. Rd8 {[%clk 0:01:09.1]} 37...
g4 {[%clk 0:00:14.7]} 38. Rd6+ {[%clk 0:01:04.4]} 38... Kf5 {[%clk 0:00:14.9]}
39. Rxa6 {[%clk 0:01:04.4]} 39... Rd7 {[%clk 0:00:15.4]} 40. Ra5+ {[%clk
0:01:03.7]} 40... Ke4 {[%clk 0:00:15]} 41. Rd5 {[%clk 0:01:04.2]} 41... Rxd5
{[%clk 0:00:15.6]} 42. cxd5 {[%clk 0:01:04.2]} 42... Kxd5 {[%clk 0:00:16.5]} 43.
h3 {[%clk 0:01:02.7]} 43... h5 {[%clk 0:00:16.4]} 44. Kh2 {[%clk 0:01:02.3]}
44... Ke4 {[%clk 0:00:15.9]} 45. hxg4 {[%clk 0:01:02.4]} 45... hxg4 {[%clk
0:00:16.1]} 46. Kg3 {[%clk 0:01:02.4]} 46... Kd3 {[%clk 0:00:16.8]} 47. Kxg4
{[%clk 0:01:02.3]} 47... Kc2 {[%clk 0:00:17.5]} 48. Kxf3 {[%clk 0:01:02.1]}
48... Kd1 {[%clk 0:00:18.2]} 49. Ba5 {[%clk 0:01:01.4]} 49... e1=Q {[%clk
0:00:19.1]} 50. Bxe1 {[%clk 0:01:01]} 50... Kxe1 {[%clk 0:00:20]} 51. Ke3 {[%clk
0:01:00.9]} 51... Kd1 {[%clk 0:00:20.9]} 1-0

[Event "Betsys MČR v online bleskovém šachu 2021"]
[Site "Chess.com"]
[Date "2021.04.17"]
[Round "10"]
[White "Rozmetal"]
[Black "NeumanPetr"]
[Result "0-1"]
[WhiteElo "2142"]
[BlackElo "2468"]
[TimeControl "180+1"]
[EndTime "10:40:19 PDT"]
[Termination "Uživatel NeumanPetr zvítězil na čas"]

1. e4 {[%clk 0:03:00.9]} 1... d6 {[%clk 0:03:00.9]} 2. d4 {[%clk 0:03:00.2]}
2... Nf6 {[%clk 0:03:01.6]} 3. Nc3 {[%clk 0:03:00.5]} 3... e5 {[%clk 0:03:02.3]}
4. Nf3 {[%clk 0:02:59]} 4... Nbd7 {[%clk 0:03:02]} 5. g4 {[%clk 0:02:58]} 5...
Nxg4 {[%clk 0:02:58.8]} 6. Rg1 {[%clk 0:02:57.3]} 6... Ngf6 {[%clk 0:02:58.5]}
7. Be3 {[%clk 0:02:49.6]} 7... c6 {[%clk 0:02:53.4]} 8. Qd2 {[%clk 0:02:48.8]}
8... g6 {[%clk 0:02:45.6]} 9. O-O-O {[%clk 0:02:39.8]} 9... Qe7 {[%clk
0:02:45.4]} 10. Bc4 {[%clk 0:02:29.5]} 10... Bg7 {[%clk 0:02:44.1]} 11. Ng5
{[%clk 0:02:18]} 11... O-O {[%clk 0:02:41.9]} 12. f4 {[%clk 0:02:17.2]} 12... b5
{[%clk 0:02:31.7]} 13. dxe5 {[%clk 0:02:01.7]} 13... dxe5 {[%clk 0:02:28.6]} 14.
Bb3 {[%clk 0:01:45]} 14... a5 {[%clk 0:01:55.1]} 15. a4 {[%clk 0:01:30.4]} 15...
b4 {[%clk 0:01:55]} 16. Ne2 {[%clk 0:01:29.6]} 16... exf4 {[%clk 0:00:59.9]} 17.
Nxf4 {[%clk 0:01:09.5]} 17... Ne5 {[%clk 0:00:56.5]} 18. h4 {[%clk 0:00:42.1]}
18... Bg4 {[%clk 0:00:52.2]} 19. Rdf1 {[%clk 0:00:27.3]} 19... Kh8 {[%clk
0:00:28.9]} 20. Qf2 {[%clk 0:00:24.3]} 20... h6 {[%clk 0:00:23.6]} 21. Bc5
{[%clk 0:00:19.8]} 21... Qc7 {[%clk 0:00:20.4]} 22. Bxf8 {[%clk 0:00:15.3]}
22... Rxf8 {[%clk 0:00:20.3]} 23. Qc5 {[%clk 0:00:13.1]} 23... hxg5 {[%clk
0:00:17.8]} 24. hxg5 {[%clk 0:00:10.9]} 24... Nh5 {[%clk 0:00:17.9]} 25. Rh1
{[%clk 0:00:03.5]} 25... Kg8 {[%clk 0:00:16.9]} 0-1

[Event "Betsys MČR v online bleskovém šachu 2021"]
[Site "Chess.com"]
[Date "2021.04.17"]
[Round "10"]
[White "kalcs"]
[Black "Lisak007"]
[Result "1-0"]
[WhiteElo "2076"]
[BlackElo "1826"]
[TimeControl "180+1"]
[EndTime "10:40:19 PDT"]
[Termination "Uživatel kalcs zvítězil na čas"]

1. e4 {[%clk 0:02:59.9]} 1... c5 {[%clk 0:02:59.7]} 2. Nf3 {[%clk 0:02:59.2]}
2... Nc6 {[%clk 0:02:59.6]} 3. d4 {[%clk 0:02:59.1]} 3... cxd4 {[%clk
0:02:59.6]} 4. Nxd4 {[%clk 0:02:59.4]} 4... Nf6 {[%clk 0:02:59.6]} 5. Nc3 {[%clk
0:02:59.5]} 5... e6 {[%clk 0:02:59.9]} 6. Be2 {[%clk 0:02:57.6]} 6... Bb4 {[%clk
0:02:59.7]} 7. f3 {[%clk 0:02:47.8]} 7... d5 {[%clk 0:02:56.3]} 8. Nxc6 {[%clk
0:02:40.3]} 8... bxc6 {[%clk 0:02:55.3]} 9. e5 {[%clk 0:02:34.5]} 9... Nd7
{[%clk 0:02:53.2]} 10. f4 {[%clk 0:02:22.4]} 10... Bxc3+ {[%clk 0:02:52.4]} 11.
bxc3 {[%clk 0:02:21.7]} 11... O-O {[%clk 0:02:53]} 12. O-O {[%clk 0:02:15.6]}
12... f6 {[%clk 0:02:53.1]} 13. exf6 {[%clk 0:02:14.1]} 13... Qxf6 {[%clk
0:02:50.5]} 14. Bd2 {[%clk 0:02:02.1]} 14... Rb8 {[%clk 0:02:49.3]} 15. Bd3
{[%clk 0:01:52.9]} 15... Nc5 {[%clk 0:02:45.5]} 16. Qe2 {[%clk 0:01:38.2]} 16...
Na4 {[%clk 0:01:58.5]} 17. Qe3 {[%clk 0:01:31.9]} 17... c5 {[%clk 0:01:32.4]}
18. Qh3 {[%clk 0:01:10.8]} 18... g6 {[%clk 0:01:19.7]} 19. Qg3 {[%clk
0:01:09.1]} 19... Rb2 {[%clk 0:00:47.8]} 20. c4 {[%clk 0:00:44.6]} 20... d4
{[%clk 0:00:40.8]} 21. Qf3 {[%clk 0:00:37.7]} 21... Bb7 {[%clk 0:00:40]} 22. Qg3
{[%clk 0:00:32.6]} 22... Bc6 {[%clk 0:00:32]} 23. f5 {[%clk 0:00:31.9]} 23...
exf5 {[%clk 0:00:30.1]} 24. Rxf5 {[%clk 0:00:27.9]} 24... Qg7 {[%clk 0:00:20]}
25. Rxf8+ {[%clk 0:00:25.5]} 25... Kxf8 {[%clk 0:00:19.3]} 26. Rf1+ {[%clk
0:00:25.3]} 26... Kg8 {[%clk 0:00:19.4]} 27. Qd6 {[%clk 0:00:20.4]} 1-0

[Event "Betsys MČR v online bleskovém šachu 2021"]
[Site "Chess.com"]
[Date "2021.04.17"]
[Round "10"]
[White "Richter_Rudolf"]
[Black "Jindrich4321"]
[Result "0-1"]
[WhiteElo "1428"]
[BlackElo "1934"]
[TimeControl "180+1"]
[EndTime "10:40:19 PDT"]
[Termination "Uživatel Jindrich4321 zvítězil po vzdání soupeře"]

1. d4 {[%clk 0:03:00.9]} 1... f5 {[%clk 0:02:59.2]} 2. c4 {[%clk 0:02:56.9]}
2... Nf6 {[%clk 0:02:59.1]} 3. Nc3 {[%clk 0:02:55.2]} 3... d6 {[%clk 0:02:59.3]}
4. Nf3 {[%clk 0:02:55.2]} 4... g6 {[%clk 0:02:59]} 5. Bg5 {[%clk 0:02:51.6]}
5... Nbd7 {[%clk 0:02:56.5]} 6. Qc2 {[%clk 0:02:49.1]} 6... Bg7 {[%clk 0:02:56]}
7. O-O-O {[%clk 0:02:44.2]} 7... O-O {[%clk 0:02:55.5]} 8. e4 {[%clk 0:02:43.5]}
8... fxe4 {[%clk 0:02:52.5]} 9. Nxe4 {[%clk 0:02:43]} 9... Nxe4 {[%clk
0:02:51.8]} 10. Qxe4 {[%clk 0:02:42.2]} 10... Nf6 {[%clk 0:02:48.4]} 11. Bxf6
{[%clk 0:02:37.8]} 11... exf6 {[%clk 0:02:42.4]} 12. Bd3 {[%clk 0:02:31.7]}
12... f5 {[%clk 0:02:34.3]} 13. Qf4 {[%clk 0:02:25.8]} 13... Bd7 {[%clk
0:02:29.2]} 14. Rhe1 {[%clk 0:02:25]} 14... Qf6 {[%clk 0:02:28.4]} 15. Qg5
{[%clk 0:02:14.6]} 15... Qxg5+ {[%clk 0:02:20.9]} 16. Nxg5 {[%clk 0:02:13.6]}
16... Rae8 {[%clk 0:02:07.3]} 17. Nf3 {[%clk 0:02:08.1]} 17... Bc6 {[%clk
0:02:03.9]} 18. Rxe8 {[%clk 0:02:00.3]} 18... Rxe8 {[%clk 0:02:00.4]} 19. Re1
{[%clk 0:02:00.8]} 19... Rxe1+ {[%clk 0:01:49.6]} 20. Nxe1 {[%clk 0:01:59.2]}
20... Bxd4 {[%clk 0:01:48.9]} 21. f3 {[%clk 0:01:50.9]} 21... Kf7 {[%clk
0:01:47.4]} 22. Nc2 {[%clk 0:01:49]} 22... Bf6 {[%clk 0:01:39.6]} 23. Nb4 {[%clk
0:01:48]} 23... Bd7 {[%clk 0:01:38.4]} 24. Nd5 {[%clk 0:01:47.5]} 24... Bd8
{[%clk 0:01:34.4]} 25. Kd2 {[%clk 0:01:19.4]} 25... c6 {[%clk 0:01:33.4]} 26.
Nc3 {[%clk 0:01:16]} 26... Bf6 {[%clk 0:01:32.3]} 27. f4 {[%clk 0:01:08.2]}
27... Be6 {[%clk 0:01:28.2]} 28. g3 {[%clk 0:01:05.6]} 28... h6 {[%clk
0:01:22.8]} 29. Be2 {[%clk 0:00:52.2]} 29... Bd4 {[%clk 0:01:19.6]} 30. Bf3
{[%clk 0:00:38.3]} 30... Bg1 {[%clk 0:01:15.4]} 31. h3 {[%clk 0:00:31.2]} 31...
Bxc4 {[%clk 0:01:13.4]} 32. Ne2 {[%clk 0:00:30.7]} 32... Bb6 {[%clk 0:01:06.3]}
33. b3 {[%clk 0:00:28.1]} 33... Be6 {[%clk 0:01:05.5]} 34. Kd3 {[%clk 0:00:23]}
34... d5 {[%clk 0:01:01.9]} 35. Nd4 {[%clk 0:00:23.1]} 35... Bd7 {[%clk
0:01:00.8]} 36. b4 {[%clk 0:00:14]} 36... Bxd4 {[%clk 0:00:59]} 37. Kxd4 {[%clk
0:00:13.6]} 37... Ke6 {[%clk 0:00:58.3]} 38. a4 {[%clk 0:00:11.5]} 38... Kd6
{[%clk 0:00:56]} 39. Be2 {[%clk 0:00:09.1]} 39... b6 {[%clk 0:00:55.2]} 40. Ba6
{[%clk 0:00:08.4]} 40... c5+ {[%clk 0:00:54.3]} 41. bxc5+ {[%clk 0:00:08.3]}
41... bxc5+ {[%clk 0:00:53.4]} 42. Kd3 {[%clk 0:00:07.5]} 42... Bxa4 {[%clk
0:00:51.8]} 0-1

[Event "Betsys MČR v online bleskovém šachu 2021"]
[Site "Chess.com"]
[Date "2021.04.17"]
[Round "10"]
[White "Pokemonchess"]
[Black "AJedlicka"]
[Result "1/2-1/2"]
[WhiteElo "1959"]
[BlackElo "2192"]
[TimeControl "180+1"]
[EndTime "10:40:22 PDT"]
[Termination "Remíza opakováním pozice"]

1. e4 {[%clk 0:03:00.9]} 1... c5 {[%clk 0:02:59.5]} 2. Nf3 {[%clk 0:03:00.2]}
2... d6 {[%clk 0:02:59.2]} 3. d4 {[%clk 0:02:59.8]} 3... cxd4 {[%clk 0:02:58.8]}
4. Nxd4 {[%clk 0:03:00.7]} 4... Nf6 {[%clk 0:02:58.4]} 5. Nc3 {[%clk 0:03:00.8]}
5... a6 {[%clk 0:02:58.2]} 6. Bc4 {[%clk 0:03:00.1]} 6... e6 {[%clk 0:02:57.7]}
7. Bb3 {[%clk 0:03:00.1]} 7... Nbd7 {[%clk 0:02:57.2]} 8. Be3 {[%clk 0:02:59.4]}
8... Nc5 {[%clk 0:02:56.7]} 9. f3 {[%clk 0:02:54.4]} 9... Be7 {[%clk 0:02:56]}
10. O-O {[%clk 0:02:53.7]} 10... O-O {[%clk 0:02:55.5]} 11. Nde2 {[%clk
0:02:44.9]} 11... Qc7 {[%clk 0:02:53.1]} 12. Ng3 {[%clk 0:02:42.8]} 12... b5
{[%clk 0:02:52.2]} 13. Nce2 {[%clk 0:02:40.5]} 13... a5 {[%clk 0:02:48.1]} 14.
a3 {[%clk 0:02:38.2]} 14... a4 {[%clk 0:02:46.4]} 15. Ba2 {[%clk 0:02:37.6]}
15... Bb7 {[%clk 0:02:45.7]} 16. Nd4 {[%clk 0:02:35.7]} 16... Qa5 {[%clk
0:02:38.8]} 17. Re1 {[%clk 0:02:30.7]} 17... b4 {[%clk 0:02:37.5]} 18. Bd2
{[%clk 0:02:28]} 18... Na6 {[%clk 0:02:28.7]} 19. axb4 {[%clk 0:02:22.7]} 19...
Nxb4 {[%clk 0:02:27.2]} 20. c3 {[%clk 0:02:14.3]} 20... Nxa2 {[%clk 0:02:21.9]}
21. Rxa2 {[%clk 0:02:13.5]} 21... Qb6 {[%clk 0:02:19.2]} 22. Kh1 {[%clk
0:02:12.1]} 22... Bc6 {[%clk 0:02:10.4]} 23. Be3 {[%clk 0:02:09.3]} 23... Qb7
{[%clk 0:02:09.9]} 24. Qd2 {[%clk 0:01:52.7]} 24... d5 {[%clk 0:01:59.2]} 25. e5
{[%clk 0:01:45.1]} 25... Nd7 {[%clk 0:01:58.7]} 26. f4 {[%clk 0:01:44.5]} 26...
Bb5 {[%clk 0:01:54]} 27. Bf2 {[%clk 0:01:38.8]} 27... Bc4 {[%clk 0:01:53.5]} 28.
Raa1 {[%clk 0:01:36.9]} 28... Rfb8 {[%clk 0:01:52.5]} 29. Reb1 {[%clk
0:01:30.3]} 29... Nc5 {[%clk 0:01:51.3]} 30. f5 {[%clk 0:01:25.6]} 30... exf5
{[%clk 0:01:49.1]} 31. Ngxf5 {[%clk 0:01:24.5]} 31... Bf8 {[%clk 0:01:48.8]} 32.
Qe3 {[%clk 0:00:54.5]} 32... Ne4 {[%clk 0:01:45.6]} 33. Bh4 {[%clk 0:00:50.2]}
33... Qb6 {[%clk 0:01:41.6]} 34. Qf4 {[%clk 0:00:42.9]} 34... Qg6 {[%clk
0:01:38.3]} 35. Be7 {[%clk 0:00:36.4]} 35... a3 {[%clk 0:01:29.3]} 36. Bxf8
{[%clk 0:00:35.6]} 36... Kxf8 {[%clk 0:01:28.6]} 37. e6 {[%clk 0:00:32.6]} 37...
axb2 {[%clk 0:01:13.3]} 38. Rxa8 {[%clk 0:00:26.5]} 38... Rxa8 {[%clk
0:01:12.8]} 39. e7+ {[%clk 0:00:24]} 39... Kg8 {[%clk 0:01:12.4]} 40. Qc7 {[%clk
0:00:20.6]} 40... Nf2+ {[%clk 0:01:00.4]} 41. Kg1 {[%clk 0:00:20]} 41... Nh3+
{[%clk 0:00:59.9]} 42. Kh1 {[%clk 0:00:20.5]} 42... Nf2+ {[%clk 0:00:43.8]} 43.
Kg1 {[%clk 0:00:20.1]} 43... Nh3+ {[%clk 0:00:43.7]} 44. Kh1 {[%clk 0:00:20.1]}
44... Nf2+ {[%clk 0:00:39.9]} 1/2-1/2

[Event "Betsys MČR v online bleskovém šachu 2021"]
[Site "Chess.com"]
[Date "2021.04.17"]
[Round "10"]
[White "pepca"]
[Black "psvoboda72"]
[Result "1-0"]
[WhiteElo "1539"]
[BlackElo "1689"]
[TimeControl "180+1"]
[EndTime "10:40:25 PDT"]
[Termination "Uživatel pepca zvítězil na čas"]

1. e4 {[%clk 0:03:00.9]} 1... e5 {[%clk 0:02:55.2]} 2. Nf3 {[%clk 0:03:00.3]}
2... Nc6 {[%clk 0:02:55]} 3. d4 {[%clk 0:03:00.1]} 3... exd4 {[%clk 0:02:53.9]}
4. Nxd4 {[%clk 0:03:00.5]} 4... Nf6 {[%clk 0:02:52.8]} 5. Nc3 {[%clk 0:02:58.8]}
5... Bc5 {[%clk 0:02:46.7]} 6. Be3 {[%clk 0:02:57.8]} 6... O-O {[%clk
0:02:38.8]} 7. Nxc6 {[%clk 0:02:57.7]} 7... bxc6 {[%clk 0:02:30.2]} 8. Bxc5
{[%clk 0:02:57.7]} 8... Re8 {[%clk 0:02:27.5]} 9. Bd3 {[%clk 0:02:57.4]} 9... d5
{[%clk 0:02:24.9]} 10. f3 {[%clk 0:02:52.6]} 10... dxe4 {[%clk 0:02:12.2]} 11.
fxe4 {[%clk 0:02:51.1]} 11... Bg4 {[%clk 0:02:08.1]} 12. Qc1 {[%clk 0:02:31.3]}
12... Qc8 {[%clk 0:02:00.5]} 13. O-O {[%clk 0:02:26.6]} 13... Qe6 {[%clk
0:01:54.3]} 14. Qf4 {[%clk 0:02:13.8]} 14... Nh5 {[%clk 0:01:48.7]} 15. Qxc7
{[%clk 0:01:59.1]} 15... Rac8 {[%clk 0:01:45]} 16. Qxa7 {[%clk 0:01:56.5]} 16...
Nf6 {[%clk 0:01:30.9]} 17. Qa4 {[%clk 0:01:46]} 17... Qe5 {[%clk 0:01:22.1]} 18.
Bd4 {[%clk 0:01:42.4]} 18... Qg5 {[%clk 0:01:15]} 19. Bxf6 {[%clk 0:01:36.7]}
19... gxf6 {[%clk 0:01:14.2]} 20. Qd4 {[%clk 0:01:33.1]} 20... Re6 {[%clk
0:01:12.7]} 21. Ne2 {[%clk 0:01:17.5]} 21... Bh3 {[%clk 0:01:10.5]} 22. Qf2
{[%clk 0:01:10.4]} 22... Rce8 {[%clk 0:01:01.3]} 23. Nf4 {[%clk 0:01:09.7]}
23... Bxg2 {[%clk 0:00:55.1]} 24. Qxg2 {[%clk 0:01:01.8]} 24... Qxg2+ {[%clk
0:00:53.4]} 25. Kxg2 {[%clk 0:01:01.6]} 25... Re5 {[%clk 0:00:53.4]} 26. Rg1
{[%clk 0:00:59.1]} 26... Kh8 {[%clk 0:00:52.2]} 27. Kh1 {[%clk 0:00:58.2]} 27...
Rc5 {[%clk 0:00:47.3]} 28. Raf1 {[%clk 0:00:53.6]} 28... Ra5 {[%clk 0:00:43.9]}
29. Ne2 {[%clk 0:00:40.4]} 29... Rxa2 {[%clk 0:00:42]} 30. Rxf6 {[%clk
0:00:39.2]} 30... Rxb2 {[%clk 0:00:40.7]} 31. Rxf7 {[%clk 0:00:37.5]} 31... Rb6
{[%clk 0:00:35.9]} 32. Rgg7 {[%clk 0:00:35]} 32... Ra8 {[%clk 0:00:06.2]} 33.
Rxh7+ {[%clk 0:00:33]} 33... Kg8 {[%clk 0:00:02.3]} 34. Rhg7+ {[%clk 0:00:33.2]}
34... Kh8 {[%clk 0:00:01.4]} 35. Nf4 {[%clk 0:00:33.2]} 1-0

[Event "Betsys MČR v online bleskovém šachu 2021"]
[Site "Chess.com"]
[Date "2021.04.17"]
[Round "10"]
[White "androidddd"]
[Black "Petr_Zacek"]
[Result "1-0"]
[WhiteElo "1462"]
[BlackElo "1738"]
[TimeControl "180+1"]
[EndTime "10:40:26 PDT"]
[Termination "Uživatel androidddd zvítězil matem"]

1. e4 {[%clk 0:03:00]} 1... e6 {[%clk 0:02:59.4]} 2. d4 {[%clk 0:02:59.5]} 2...
d5 {[%clk 0:02:59.1]} 3. Nc3 {[%clk 0:02:54.4]} 3... Bb4 {[%clk 0:02:57.5]} 4.
exd5 {[%clk 0:02:53.3]} 4... exd5 {[%clk 0:02:56.8]} 5. Bd3 {[%clk 0:02:52.5]}
5... Nf6 {[%clk 0:02:55.3]} 6. Ne2 {[%clk 0:02:50.3]} 6... O-O {[%clk
0:02:54.2]} 7. O-O {[%clk 0:02:36.1]} 7... Bg4 {[%clk 0:02:51.3]} 8. f3 {[%clk
0:02:33.4]} 8... Bh5 {[%clk 0:02:49.8]} 9. Ng3 {[%clk 0:02:30.9]} 9... Bg6
{[%clk 0:02:48.6]} 10. Bg5 {[%clk 0:02:05.4]} 10... c6 {[%clk 0:02:35.3]} 11. a3
{[%clk 0:02:01.9]} 11... Bd6 {[%clk 0:02:33.9]} 12. Nf5 {[%clk 0:01:55.1]} 12...
Bc7 {[%clk 0:02:31.9]} 13. Ne2 {[%clk 0:01:46.1]} 13... Nbd7 {[%clk 0:02:23.1]}
14. Neg3 {[%clk 0:01:43.7]} 14... Bb6 {[%clk 0:02:16.9]} 15. c3 {[%clk
0:01:42.3]} 15... c5 {[%clk 0:02:14.7]} 16. Kh1 {[%clk 0:01:36.8]} 16... c4
{[%clk 0:02:04.8]} 17. Bc2 {[%clk 0:01:34.6]} 17... Qc7 {[%clk 0:01:57.4]} 18.
Qd2 {[%clk 0:01:32]} 18... Rfe8 {[%clk 0:01:42.8]} 19. Rae1 {[%clk 0:01:23.8]}
19... Nf8 {[%clk 0:01:40.6]} 20. Bxf6 {[%clk 0:01:15.8]} 20... gxf6 {[%clk
0:01:39.8]} 21. Qh6 {[%clk 0:01:12.1]} 21... Ne6 {[%clk 0:01:19]} 22. Nh5 {[%clk
0:00:36.9]} 22... Bxh5 {[%clk 0:00:58.3]} 23. Qxh5 {[%clk 0:00:33.6]} 23... Qf4
{[%clk 0:00:43]} 24. Nh6+ {[%clk 0:00:27.7]} 24... Kh8 {[%clk 0:00:39.8]} 25.
Nxf7+ {[%clk 0:00:15.3]} 25... Kg8 {[%clk 0:00:39.4]} 26. Qxh7+ {[%clk
0:00:13.4]} 26... Kf8 {[%clk 0:00:39.3]} 27. Nh6 {[%clk 0:00:08.6]} 27... Qc7
{[%clk 0:00:15.8]} 28. Qg8+ {[%clk 0:00:06.3]} 28... Ke7 {[%clk 0:00:15.1]} 29.
Qxe6+ {[%clk 0:00:05.6]} 29... Kd8 {[%clk 0:00:15]} 30. Qxe8# {[%clk 0:00:06]}
1-0

[Event "Betsys MČR v online bleskovém šachu 2021"]
[Site "Chess.com"]
[Date "2021.04.17"]
[Round "10"]
[White "rakintsev"]
[Black "MametevArtem097"]
[Result "0-1"]
[WhiteElo "1738"]
[BlackElo "1995"]
[TimeControl "180+1"]
[EndTime "10:40:27 PDT"]
[Termination "Uživatel MametevArtem097 zvítězil po vzdání soupeře"]

1. e4 {[%clk 0:03:00.9]} 1... c5 {[%clk 0:02:58.4]} 2. Nf3 {[%clk 0:02:59.9]}
2... Nc6 {[%clk 0:02:58.2]} 3. Bc4 {[%clk 0:02:59.6]} 3... e6 {[%clk 0:02:57.9]}
4. O-O {[%clk 0:02:59.3]} 4... d5 {[%clk 0:02:58]} 5. exd5 {[%clk 0:02:58.8]}
5... exd5 {[%clk 0:02:58.9]} 6. Bb3 {[%clk 0:02:58]} 6... Nf6 {[%clk 0:02:56.9]}
7. a4 {[%clk 0:02:52.9]} 7... Be7 {[%clk 0:02:56.3]} 8. d3 {[%clk 0:02:52.7]}
8... O-O {[%clk 0:02:56.3]} 9. Nc3 {[%clk 0:02:51.2]} 9... Bg4 {[%clk
0:02:54.5]} 10. h3 {[%clk 0:02:36.5]} 10... Bh5 {[%clk 0:02:54]} 11. Qd2 {[%clk
0:02:32.6]} 11... Bxf3 {[%clk 0:02:52.1]} 12. gxf3 {[%clk 0:02:31.9]} 12... Nd4
{[%clk 0:02:52.6]} 13. Qf4 {[%clk 0:02:28.3]} 13... Bd6 {[%clk 0:02:46.3]} 14.
Qe3 {[%clk 0:01:21.9]} 14... Re8 {[%clk 0:02:43.7]} 15. Ne4 {[%clk 0:01:21.5]}
15... dxe4 {[%clk 0:02:36.6]} 16. fxe4 {[%clk 0:01:20.5]} 16... Bf4 {[%clk
0:02:30.7]} 17. Qxf4 {[%clk 0:00:56.8]} 17... Ne2+ {[%clk 0:02:30.4]} 18. Kh2
{[%clk 0:00:54.7]} 18... Nxf4 {[%clk 0:02:31.3]} 19. Bxf4 {[%clk 0:00:54.7]}
19... Nh5 {[%clk 0:02:28.2]} 20. Bg3 {[%clk 0:00:53.9]} 20... Nxg3 {[%clk
0:02:26.8]} 21. fxg3 {[%clk 0:00:54.1]} 21... Re7 {[%clk 0:02:25.9]} 22. Rf4
{[%clk 0:00:53.7]} 22... Qd4 {[%clk 0:02:24.9]} 23. Raf1 {[%clk 0:00:49.8]}
23... Rf8 {[%clk 0:02:25.2]} 24. Rf5 {[%clk 0:00:42.3]} 24... Qxb2 {[%clk
0:02:22.9]} 25. Rxc5 {[%clk 0:00:42]} 25... b6 {[%clk 0:02:15.2]} 26. Rcf5
{[%clk 0:00:41.4]} 26... Rc7 {[%clk 0:02:09.2]} 27. R5f2 {[%clk 0:00:39.8]}
27... g6 {[%clk 0:02:02]} 28. h4 {[%clk 0:00:39.6]} 28... Qc3 {[%clk 0:01:58.5]}
29. Kh3 {[%clk 0:00:39.1]} 29... Kg7 {[%clk 0:01:58.8]} 30. h5 {[%clk
0:00:33.1]} 30... Re7 {[%clk 0:01:48.8]} 31. Kh4 {[%clk 0:00:25.3]} 31... Qe5
{[%clk 0:01:41]} 32. g4 {[%clk 0:00:21.4]} 32... g5+ {[%clk 0:01:26.5]} 33. Kh3
{[%clk 0:00:19.2]} 33... a5 {[%clk 0:01:24.7]} 34. h6+ {[%clk 0:00:17.5]} 34...
Kxh6 {[%clk 0:01:15.3]} 35. Rh1 {[%clk 0:00:16.6]} 35... Kg7 {[%clk 0:01:13.4]}
36. Rf5 {[%clk 0:00:15.8]} 36... Qc3 {[%clk 0:01:07.7]} 37. Rxg5+ {[%clk
0:00:12.6]} 37... Kf6 {[%clk 0:01:05.9]} 38. Rf5+ {[%clk 0:00:11.4]} 38... Kg6
{[%clk 0:01:04.7]} 39. Kg3 {[%clk 0:00:11.3]} 39... Qd2 {[%clk 0:01:02.4]} 40.
Rhh5 {[%clk 0:00:09]} 40... Qe1+ {[%clk 0:01:00.9]} 41. Kg2 {[%clk 0:00:08.7]}
41... Qe2+ {[%clk 0:01:00.4]} 42. Kg1 {[%clk 0:00:08.7]} 42... Qxg4+ {[%clk
0:01:00]} 43. Kh1 {[%clk 0:00:07.7]} 43... Qxh5+ {[%clk 0:00:59.2]} 44. Rxh5
{[%clk 0:00:07.3]} 44... Kxh5 {[%clk 0:01:00.1]} 45. Kh2 {[%clk 0:00:07.3]}
45... f5 {[%clk 0:00:59.9]} 46. exf5 {[%clk 0:00:05.3]} 46... Rxf5 {[%clk
0:01:00.8]} 0-1